fUST/lending_fUST_20240918
["ID","MTS","AMOUNT","RATE_DAILY","PERIOD"]
[338410437,1726609838766,-151.0,0.0002498,7]
[338410439,1726609838776,-151.0,0.0002498,7]
[338410441,1726609838785,-151.0,0.0002498,7]
[338410443,1726609838794,-30937.4643839,0.0002498,3]
[338410445,1726609838806,-1000.0,0.00024989,2]
[338410447,1726609838815,-4795.74,0.00024989,2]
[338410449,1726609838824,-500.0,0.00024989,2]
[338410450,1726609838833,-191.50541362,0.00024989,2]
[338410452,1726609838842,-295.69965731,0.00024989,5]
[338410454,1726609838852,-15468.732192,0.0002499,3]
[338410456,1726609838861,-151.0,0.0002499,7]
[338410458,1726609838871,-151.0,0.0002499,7]
[338410460,1726609838881,-151.0,0.0002499,7]
[338410462,1726609838890,-151.0,0.0002499,7]
[338410464,1726609838900,-151.0,0.0002499,7]
[338410466,1726609838910,-151.0,0.0002499,7]
[338410468,1726609838920,-3074.352867,0.0002499,7]
[338410470,1726609838929,-3074.352867,0.0002499,7]
[338410472,1726609838938,-3074.352867,0.0002499,7]
[338410473,1726609838948,-3074.352867,0.0002499,7]
[338410475,1726609838958,-151.0,0.0002499,7]
[338410477,1726609838969,-15240.30468382,0.0002499,3]
[338410516,1726609839380,-431.87476585,0.0002499,3]
[338410517,1726609840510,-4080.06734218,0.0002499,3]
[338410518,1726609840523,-8738.19440988,0.0002499,3]
[338410519,1726609840536,-6966.58680958,0.0002499,3]
[338410550,1726609846393,-17075.70660029,0.0002499,3]
[338410551,1726609846412,-18153.3,0.0002499,3]
[338410552,1726609898102,27.67,0.000194,2]
[338410553,1726609898122,150.03864288,0.000194,2]
[338410594,1726610825121,-315.67783233,0.000194,2]
[338410595,1726610840146,-118.09546311,0.000194,2]
[338410596,1726610840168,-500.0,0.0002051,30]
[338410597,1726610840191,-500.0,0.0002051,30]
[338410598,1726610840212,-151.5,0.00021,2]
[338410599,1726610840234,-150.0,0.00021,2]
[338410600,1726610840255,-58.86960417,0.00022881,2]
[338410601,1726610945103,-220.0,0.00021916,2]
[338410602,1726610945126,-11.10150986,0.00021916,2]
[338410603,1726610947132,-288.89849014,0.00021916,2]
[338410604,1726610947156,-14509.9,0.00021917,2]
[338410605,1726610947178,-218.0,0.00022,2]
[338410606,1726610947201,-14509.9,0.00022191,2]
[338410607,1726610947225,-218.0,0.00022192,2]
[338410608,1726610947250,-224.93249787,0.00022464,2]
[338410609,1726610947271,-10047.29996494,0.00022465,2]
[338410610,1726610963109,-181.22404728,0.00022465,2]
[338410611,1726610968404,-1151.15766052,0.00022465,2]
[338410622,1726611028943,150.03864288,0.00021,2]
[338410654,1726611032573,-3.61135712,0.00021,2]
[338410655,1726611032586,-164.0,0.00022,2]
[338410656,1726611032596,-164.0,0.00022192,2]
[338410657,1726611032606,-416.0415748,0.00022465,2]
[338410658,1726611032631,-516.1327671,0.00022465,2]
[338410685,1726611038575,-2198.04398536,0.00022465,2]
[338410686,1726611038584,-300.0,0.00022738,2]
[338410687,1726611038594,-14509.9,0.00022739,2]
[338410688,1726611038604,-107.79706183,0.00022881,2]
[338410689,1726611038613,-163.449493,0.00022932,2]
[338410690,1726611038623,-14509.9,0.00023013,2]
[338410691,1726611038632,-164.0,0.00023014,2]
[338410692,1726611038642,-1076.0,0.00023285,2]
[338410693,1726611038652,-14509.9,0.00023287,2]
[338410694,1726611038662,-166.666666,0.00023504,2]
[338410695,1726611038671,-774.28,0.00023551,3]
[338410696,1726611038681,-12659.3806062,0.00023551,3]
[338410697,1726611038690,-14509.9,0.00023561,2]
[338410698,1726611038700,-154.11553568,0.00023743,2]
[338410699,1726611038710,-14509.9,0.00023835,2]
[338410700,1726611038719,-14509.9,0.00024109,2]
[338410701,1726611038728,-166.666666,0.00024128,2]
[338410702,1726611038738,-164.0,0.00024164,2]
[338410703,1726611038749,-14509.9,0.00024383,2]
[338410704,1726611038758,-12659.3806062,0.00024647,3]
[338410705,1726611038768,-14509.9,0.00024657,2]
[338410706,1726611038779,-200.0,0.00024658,15]
[338410707,1726611038789,-420.0,0.0002469,2]
[338410708,1726611038799,-166.666666,0.00024752,2]
[338410709,1726611038812,-1000.0,0.0002489,2]
[338410710,1726611038821,-735.09530004,0.00024899,2]
[338410711,1726611038831,-152.95,0.000249,31]
[338410713,1726611038842,-152.95,0.000249,31]
[338410714,1726611038852,-152.95,0.000249,31]
[338410715,1726611038862,-152.95,0.000249,31]
[338410717,1726611038871,-152.95,0.000249,31]
[338410718,1726611038880,-152.95,0.000249,31]
[338410720,1726611038891,-152.95,0.000249,31]
[338410722,1726611038901,-14509.9,0.00024931,2]
[338410724,1726611038911,-572.0,0.00024932,2]
[338410725,1726611038922,-500.0,0.00024973,2]
[338410726,1726611038932,-500.0,0.00024973,2]
[338410727,1726611038944,-500.0,0.00024973,2]
[338410728,1726611038954,-500.0,0.00024979,2]
[338410729,1726611038964,-191.50541362,0.00024979,2]
[338410730,1726611038975,-151.0,0.0002498,7]
[338410731,1726611038985,-63296.9030311,0.0002498,3]
[338410732,1726611038995,-1000.0,0.00024989,2]
[338410733,1726611039005,-4795.74,0.00024989,2]
[338410734,1726611039015,-295.69965731,0.0002499,5]
[338410735,1726611039024,-68987.13594727,0.0002499,3]
[338410736,1726611039036,-5036.16328101,0.0002499,3]
[338410737,1726611039047,-2500.0,0.0002499,3]
[338410742,1726611040619,-1970.01000219,0.0002499,3]
[338410743,1726611040630,-4708.41837118,0.0002499,3]
[338410744,1726611040642,-2416.69875994,0.0002499,3]
[338410763,1726611043857,-500.0,0.00024973,2]
[338410765,1726611043867,-17419.7586819,0.0002499,3]
[338410780,1726611483203,1777.4,0.00018933,120]
[338410783,1726611501244,1777.61221891,0.00018933,120]
[338410818,1726611901221,-300.0,0.0001597,2]
[338410819,1726611903446,-300.0,0.0001597,2]
[338410820,1726611913986,-353.7192555,0.00015742,2]
[338410821,1726611953960,-836.8587242,0.00015474,2]
[338410822,1726611961209,-300.0,0.00015742,2]
[338410823,1726611963395,-176.25116,0.00015742,2]
[338410824,1726611967568,173.6,0.00010959,2]
[338410825,1726611968193,-300.0,0.0001597,2]
[338410826,1726611972190,-250.0,0.0001559,2]
[338410827,1726611974309,-250.0,0.00015633,2]
[338410828,1726611975498,-250.0,0.00015676,2]
[338410829,1726611977060,-250.0,0.00015719,2]
[338410830,1726611977687,-250.0,0.00015761,2]
[338410831,1726611978668,250.0,0.00010959,2]
[338410832,1726611978694,618.01,0.00010959,2]
[338410833,1726611979201,-250.0,0.00015804,2]
[338410834,1726611980256,-250.0,0.00015847,2]
[338410835,1726611981907,-250.0,0.0001589,2]
[338410836,1726611982491,-250.0,0.00015933,2]
[338410838,1726612021311,-300.0,0.0001597,2]
[338410839,1726612024213,-300.0,0.0001597,2]
[338410841,1726612032136,-167.04,0.0001597,2]
[338410842,1726612040145,-164.645155,0.00015205,2]
[338410843,1726612040171,-132.96,0.0001597,2]
[338410844,1726612040193,-1365.85591907,0.00015971,2]
[338410845,1726612044152,-735.00485423,0.00015971,2]
[338410846,1726612050108,-1231.10999079,0.00015971,2]
[338410847,1726612081233,-300.0,0.0001597,2]
[338410848,1726612084286,-300.0,0.0001597,2]
[338410864,1726612143104,-300.0,0.00015222,2]
[338410865,1726612145733,-300.0,0.00015222,2]
[338410866,1726612146153,-2400.0,0.00015222,2]
[338410867,1726612146187,-300.0,0.0001597,2]
[338410868,1726612146208,-300.0,0.0001597,2]
[338410869,1726612146229,-17439.03552831,0.00015971,2]
[338410870,1726612146250,-250.0,0.00015975,2]
[338410871,1726612146271,-250.0,0.00016018,2]
[338410872,1726612146293,-250.0,0.00016061,2]
[338410873,1726612146314,-250.0,0.00016104,2]
[338410874,1726612146335,-772.8955268,0.0001612,2]
[338410875,1726612146356,-250.0,0.00016146,2]
[338410876,1726612146379,-250.0,0.00016189,2]
[338410877,1726612146399,-171.741517,0.00016192,2]
[338410878,1726612146419,-1808.8471285,0.00016232,2]
[338410879,1726612146439,-250.0,0.00016232,2]
[338410880,1726612146460,-250.0,0.00016275,2]
[338410881,1726612146479,-2689.06341258,0.00016295,2]
[338410882,1726612146499,-250.0,0.00016317,2]
[338410883,1726612146519,-250.0,0.0001636,2]
[338410884,1726612146541,-500.0,0.00016394,2]
[338410885,1726612146561,-500.0,0.00016394,2]
[338410886,1726612146582,-500.0,0.00016394,2]
[338410887,1726612146602,-500.0,0.00016394,2]
[338410888,1726612146623,-500.0,0.00016394,2]
[338410889,1726612146644,-500.0,0.00016394,2]
[338410890,1726612146664,-500.0,0.00016394,2]
[338410891,1726612146696,-500.0,0.00016394,2]
[338410892,1726612146717,-500.0,0.00016394,2]
[338410893,1726612146739,-500.0,0.00016394,2]
[338410894,1726612146760,-500.0,0.00016394,2]
[338410895,1726612146782,-500.0,0.00016394,2]
[338410896,1726612146803,-500.0,0.00016394,2]
[338410897,1726612146827,-500.0,0.00016394,2]
[338410898,1726612146849,-500.0,0.00016394,2]
[338410899,1726612146872,-500.0,0.00016394,2]
[338410900,1726612146894,-500.0,0.00016394,2]
[338410901,1726612146916,-500.0,0.00016394,2]
[338410902,1726612146938,-500.0,0.00016394,2]
[338410903,1726612146960,-500.0,0.00016394,2]
[338410904,1726612146982,-500.0,0.00016394,2]
[338410905,1726612147005,-500.0,0.00016394,2]
[338410906,1726612147027,-500.0,0.00016394,2]
[338410907,1726612147051,-500.0,0.00016394,2]
[338410908,1726612147073,-410.61927768,0.00016394,2]
[338410909,1726612147095,-500.0,0.00016394,2]
[338410910,1726612147116,-500.0,0.00016394,2]
[338410911,1726612147140,-500.0,0.00016394,2]
[338410912,1726612147162,-500.0,0.00016394,2]
[338410913,1726612147195,-500.0,0.00016394,2]
[338410914,1726612147219,-500.0,0.00016394,2]
[338410915,1726612147242,-500.0,0.00016394,2]
[338410916,1726612147265,-330.72058791,0.00016394,2]
[338410917,1726612147287,-500.0,0.00016394,2]
[338410918,1726612147311,-500.0,0.00016394,2]
[338410919,1726612147333,-24900.0,0.00016396,2]
[338410920,1726612147356,-250.0,0.00016403,2]
[338410921,1726612147377,-2269.18128941,0.000167,2]
[338410922,1726612147398,-160.01369344,0.0001686,2]
[338410923,1726612147419,-500.0,0.0001686,2]
[338410924,1726612147440,-500.0,0.0001686,2]
[338410925,1726612147460,-253.85636901,0.0001686,2]
[338410926,1726612147480,-500.0,0.0001686,2]
[338410927,1726612147500,-503.75028867,0.0001686,2]
[338410928,1726612147521,-513.21623548,0.00017155,2]
[338410929,1726612147542,-500.0,0.00017173,2]
[338410930,1726612147563,-500.0,0.00017173,2]
[338410931,1726612147584,-160.08750632,0.00017173,2]
[338410932,1726612147604,-500.0,0.00017173,2]
[338410933,1726612147627,-68432.1072555,0.00017179,2]
[338410934,1726612147647,-6667.77048124,0.00017189,2]
[338410935,1726612147669,-5000.0,0.00017189,2]
[338410936,1726612147688,-5000.0,0.00017189,2]
[338410937,1726612147709,-5000.0,0.00017189,2]
[338410938,1726612147729,-5000.0,0.00017189,2]
[338410939,1726612147750,-420.0,0.00017462,2]
[338410940,1726612147771,-214.18776588,0.00017479,2]
[338410941,1726612147793,-500.0,0.00017479,2]
[338410942,1726612147813,-500.0,0.00017479,2]
[338410943,1726612147834,-372.52476969,0.00017479,2]
[338410944,1726612147855,-500.0,0.00017479,2]
[338410945,1726612147877,-500.0,0.00017479,2]
[338410946,1726612147898,-500.0,0.00017479,2]
[338410947,1726612147918,-325.62831399,0.00017479,2]
[338410948,1726612147939,-500.0,0.00017479,2]
[338410949,1726612148158,-500.0,0.00017479,2]
[338410950,1726612148185,-500.0,0.00017479,2]
[338410951,1726612148207,-197.39284013,0.00017479,2]
[338410952,1726612148230,-500.0,0.00017479,2]
[338410953,1726612148252,-500.0,0.00017479,2]
[338410954,1726612148275,-500.0,0.00017479,2]
[338410955,1726612148298,-500.0,0.00017479,2]
[338410956,1726612148321,-500.0,0.00017479,2]
[338410957,1726612148342,-500.0,0.00017479,2]
[338410958,1726612148365,-471.53463902,0.00017479,2]
[338410959,1726612148386,-376.96360707,0.00017479,2]
[338410960,1726612148407,-251.60687535,0.00017479,2]
[338410961,1726612148429,-500.0,0.00017479,2]
[338410962,1726612148452,-500.0,0.00017479,2]
[338410963,1726612148475,-500.0,0.00017479,2]
[338410964,1726612148497,-327.22622861,0.00017479,2]
[338410965,1726612148520,-22127.72832403,0.0001748,2]
[338410966,1726612148917,-46304.37893147,0.0001748,2]
[338410967,1726612148939,-57524.3716378,0.0001749,2]
[338410968,1726612148960,-20000.0,0.000175,2]
[338410969,1726612148982,-420.0,0.00017567,2]
[338410970,1726612149003,-401.99745986,0.00017979,2]
[338410971,1726612149023,-400.11708857,0.00018,2]
[338410972,1726612149047,-155.0,0.00018,30]
[338410973,1726612149068,-6783.1182553,0.00018038,2]
[338410974,1726612149089,-522.17472797,0.00018079,2]
[338410975,1726612149111,-500.0,0.00018079,2]
[338410976,1726612149131,-500.0,0.00018325,2]
[338410977,1726612149153,-500.0,0.00018325,2]
[338410978,1726612149175,-500.0,0.00018409,2]
[338410979,1726612149197,-500.0,0.00018409,2]
[338410980,1726612149219,-159.82206664,0.00018409,2]
[338410981,1726612149240,-538.09006859,0.00018409,2]
[338410982,1726612149261,-543.54638897,0.000185,2]
[338410983,1726612149282,-500.0,0.000185,2]
[338410984,1726612149303,-1000.0,0.00018542,2]
[338410985,1726612149325,-1000.0,0.00018542,2]
[338410986,1726612149346,-1034.3324211,0.0001877,2]
[338410987,1726612149370,-587.0,0.00019092,2]
[338410988,1726612149391,-163.449493,0.00019178,2]
[338410989,1726612149412,-587.0,0.00019324,2]
[338410990,1726612149433,-1457.423515,0.00019419,2]
[338410991,1726612149454,-1000.0,0.00019448,2]
[338410992,1726612149475,-401.99745983,0.00019484,2]
[338410993,1726612149497,-205.45771606,0.00019519,2]
[338410994,1726612149518,-500.0,0.00019519,2]
[338410995,1726612149538,-454.74193649,0.00019519,2]
[338410996,1726612149560,-68432.1072555,0.00019657,3]
[338410997,1726612149581,-11313.5158129,0.00019667,5]
[338410998,1726612149602,-2689.06341254,0.00019667,2]
[338410999,1726612149622,-1000.0,0.00019695,2]
[338411000,1726612149643,-7292.41900405,0.000198,2]
[338411001,1726612149665,-68432.1072555,0.000198,3]
[338411002,1726612149687,-52426.54849286,0.0001981,3]
[338411009,1726612153119,-5097.82314494,0.0001981,3]
[338411010,1726612153142,-423.028888,0.0001982,2]
[338411011,1726612153169,-500.0,0.00019873,2]
[338411012,1726612153191,-535.37981013,0.00019873,2]
[338411013,1726612153214,-500.0,0.00019873,2]
[338411014,1726612153235,-500.0,0.00019873,2]
[338411015,1726612153256,-250.0,0.00020107,2]
[338411016,1726612153514,-500.0,0.0002051,30]
[338411017,1726612153536,-500.0,0.0002051,30]
[338411018,1726612153558,-436.41305093,0.00020546,2]
[338411019,1726612155130,-1063.58694907,0.00020546,2]
[338411020,1726612155155,-1500.0,0.00020546,2]
[338411021,1726612155180,-823.0,0.00020874,2]
[338411022,1726612155204,-213.03276,0.00020912,2]
[338411023,1726612155229,-213.03276,0.00020918,2]
[338411024,1726612155252,-213.03276,0.00020923,2]
[338411025,1726612155278,-213.03276,0.00020929,2]
[338411026,1726612155303,-213.03276,0.00020934,2]
[338411027,1726612155327,-213.03276,0.0002094,2]
[338411028,1726612155350,-213.03276,0.00020945,2]
[338411029,1726612155375,-213.03276,0.00020951,2]
[338411030,1726612155399,-213.03276,0.00020956,2]
[338411031,1726612155425,-213.03276,0.00020962,2]
[338411032,1726612155446,-213.03276,0.00020967,2]
[338411033,1726612155473,-213.03276,0.00020973,2]
[338411034,1726612155496,-213.03276,0.00020978,2]
[338411035,1726612155518,-213.03276,0.00020984,2]
[338411036,1726612155539,-401.99745983,0.00020989,2]
[338411037,1726612155561,-213.03276,0.00020989,2]
[338411038,1726612155583,-213.03276,0.00020995,2]
[338411039,1726612155605,-3000.0,0.00021,2]
[338411040,1726612155627,-170.3,0.00021,2]
[338411041,1726612155649,-41210.33541789,0.00021,2]
[338411042,1726612155670,-213.03276,0.00021,2]
[338411043,1726612155693,-213.03276,0.00021006,2]
[338411044,1726612155715,-3000.0,0.0002101,2]
[338411045,1726612155740,-213.03276,0.00021011,2]
[338411046,1726612155764,-213.03276,0.00021017,2]
[338411047,1726612155787,-3000.0,0.0002102,2]
[338411048,1726612155813,-68432.1072555,0.0002102,3]
[338411049,1726612155837,-3000.0,0.0002103,2]
[338411050,1726612155862,-3319.19422,0.0002104,2]
[338411051,1726612155882,-1000.0,0.00021242,2]
[338411052,1726612155904,-193.49836768,0.00021242,2]
[338411053,1726612155928,-1000.0,0.00021242,2]
[338411054,1726612155951,-823.0,0.00021257,2]
[338411055,1726612155972,-1500.0,0.00021452,2]
[338411056,1726612155994,-1500.0,0.00021698,2]
[338411057,1726612156016,-68432.1072555,0.00021887,3]
[338411058,1726612156040,-57524.3716378,0.00021897,3]
[338411059,1726612156066,-192.82231015,0.000219,2]
[338411060,1726612156089,-57524.3716378,0.00021907,3]
[338411061,1726612156111,-164.035834,0.00021907,2]
[338411062,1726612156137,-151.0,0.00021907,2]
[338411063,1726612156161,-164.035834,0.00021907,2]
[338411064,1726612156185,-151.0,0.00021907,2]
[338411065,1726612156208,-151.0,0.00021907,2]
[338411066,1726612156231,-382.947343,0.00021907,2]
[338411067,1726612156253,-382.947343,0.00021907,2]
[338411068,1726612156276,-151.0,0.00021907,2]
[338411069,1726612156299,-151.0,0.00021907,2]
[338411070,1726612156324,-729.286509,0.00021907,2]
[338411071,1726612156350,-729.286509,0.00021907,2]
[338411072,1726612156375,-151.0,0.00021907,2]
[338411073,1726612156400,-151.0,0.00021907,2]
[338411074,1726612156422,-151.0,0.00021907,2]
[338411075,1726612156444,-213.1117,0.00021907,2]
[338411076,1726612156466,-180.315813,0.00021907,2]
[338411077,1726612156491,-180.315813,0.00021907,2]
[338411078,1726612156515,-12787.74,0.00021917,2]
[338411079,1726612156539,-166.666666,0.00021918,2]
[338411080,1726612156562,-158.0,0.00022,2]
[338411081,1726612156587,-12787.74,0.00022191,2]
[338411082,1726612156610,-500.0,0.000223,2]
[338411083,1726612156634,-200.88249384,0.000223,2]
[338411084,1726612156654,-322.92672879,0.000223,2]
[338411085,1726612156692,-177.07327121,0.000223,2]
[338411086,1726612156716,-360.01355251,0.000223,2]
[338411087,1726612156737,-166.666666,0.00022431,2]
[338411088,1726612156759,-164.035834,0.00022465,7]
[338411089,1726612156784,-164.035834,0.00022465,7]
[338411090,1726612156807,-382.947343,0.00022465,7]
[338411091,1726612156828,-382.947343,0.00022465,7]
[338411092,1726612156851,-151.0,0.00022465,7]
[338411093,1726612156873,-729.286509,0.00022465,7]
[338411094,1726612156894,-729.286509,0.00022465,7]
[338411095,1726612156917,-12787.74,0.00022465,2]
[338411096,1726612163546,151.0,0.00022191,7]
[338411097,1726612175468,151.0,0.00022191,7]
[338411104,1726612181295,151.0,0.00022191,7]
[338411105,1726612189146,151.0,0.00022191,7]
[338411107,1726612197449,431.07389,0.00021907,2]
[338411110,1726612200989,431.07389,0.00021907,2]
[338411111,1726612229175,211.514444,0.00021773,2]
[338411143,1726612232347,-401.99745983,0.00022494,2]
[338411144,1726612232356,-300.0,0.00022728,2]
[338411145,1726612232367,-300.0,0.00022728,2]
[338411146,1726612232378,-132.76254017,0.00022729,3]
[338411147,1726612232393,-2534.55093652,0.00022729,3]
[338411156,1726612237752,-54857.05816111,0.00022729,3]
[338411158,1726612237766,-269.448272,0.00022739,7]
[338411161,1726612237779,-151.0,0.00022739,7]
[338411163,1726612237792,-151.0,0.00022739,7]
[338411165,1726612237805,-151.0,0.00022739,7]
[338411166,1726612237818,-12787.74,0.00022739,2]
[338411168,1726612237831,-151.0,0.00022739,7]
[338411169,1726612237844,-151.0,0.00022739,7]
[338411170,1726612237857,-180.315813,0.00022739,7]
[338411171,1726612237872,-180.315813,0.00022739,7]
[338411172,1726612237885,-431.07389,0.00022739,7]
[338411173,1726612237899,-431.07389,0.00022739,7]
[338411174,1726612237912,-365.1957779,0.00022887,2]
[338411175,1726612237925,-166.666666,0.00022944,2]
[338411176,1726612237939,-164.035834,0.00023003,7]
[338411177,1726612237953,-164.035834,0.00023003,7]
[338411178,1726612237968,-151.0,0.00023003,7]
[338411179,1726612237982,-382.947343,0.00023003,7]
[338411180,1726612237993,-382.947343,0.00023003,7]
[338411181,1726612238004,-151.0,0.00023003,7]
[338411182,1726612238014,-729.286509,0.00023003,7]
[338411183,1726612238024,-729.286509,0.00023003,7]
[338411184,1726612238034,-151.0,0.00023003,7]
[338411185,1726612238045,-151.0,0.00023003,7]
[338411186,1726612238055,-151.0,0.00023003,7]
[338411187,1726612238065,-180.315813,0.00023003,7]
[338411188,1726612238075,-180.315813,0.00023003,7]
[338411189,1726612238088,-431.07389,0.00023003,7]
[338411190,1726612238098,-431.07389,0.00023003,7]
[338411191,1726612238107,-12787.74,0.00023013,2]
[338411192,1726612238117,-151.0,0.00023013,7]
[338411193,1726612238127,-258.517291,0.00023013,7]
[338411194,1726612238137,-151.0,0.00023013,7]
[338411195,1726612238478,-151.0,0.00023013,7]
[338411196,1726612238499,-158.0,0.00023014,2]
[338411197,1726612238510,-210.78748589,0.000231,2]
[338411198,1726612238522,-12787.74,0.00023287,2]
[338411199,1726612238532,-166.666666,0.00023456,2]
[338411200,1726612238543,-6477.79098555,0.00023561,2]
[338411201,1726612238804,-5823.96389892,0.00023561,2]
[338411202,1726612238816,-485.98511553,0.00023561,2]
[338411203,1726612238825,-1076.0,0.00023715,2]
[338411204,1726612238834,-154.11553567,0.00023743,2]
[338411205,1726612238843,-2000.0,0.00023792,2]
[338411206,1726612238852,-729.286509,0.00023793,7]
[338411207,1726612238861,-729.286509,0.00023793,7]
[338411208,1726612238870,-151.0,0.00023793,7]
[338411209,1726612238879,-151.0,0.00023793,7]
[338411210,1726612238888,-151.0,0.00023793,7]
[338411211,1726612238897,-180.315813,0.00023793,7]
[338411212,1726612238906,-180.315813,0.00023793,7]
[338411213,1726612238915,-151.0,0.00023793,7]
[338411214,1726612238924,-151.0,0.00023793,7]
[338411215,1726612238933,-151.0,0.00023793,7]
[338411216,1726612238942,-431.07389,0.00023793,7]
[338411217,1726612238952,-431.07389,0.00023793,7]
[338411218,1726612238962,-164.035834,0.00023827,7]
[338411219,1726612238971,-164.035834,0.00023827,7]
[338411220,1726612238979,-382.947343,0.00023827,7]
[338411221,1726612238988,-382.947343,0.00023827,7]
[338411222,1726612238998,-151.0,0.00023827,7]
[338411223,1726612239007,-12787.74,0.00023835,2]
[338411224,1726612239018,-590.36892812,0.00023862,2]
[338411225,1726612239028,-500.0,0.00023862,2]
[338411226,1726612239038,-166.666666,0.00023969,2]
[338411227,1726612239049,-401.99745983,0.00023999,2]
[338411228,1726612239060,-302.30477158,0.00024,2]
[338411229,1726612239070,-302.30477158,0.00024,2]
[338411230,1726612239083,-880.78574981,0.00024039,2]
[338411231,1726612239093,-164.035834,0.00024079,7]
[338411232,1726612239103,-164.035834,0.00024079,7]
[338411233,1726612239113,-382.947343,0.00024079,7]
[338411234,1726612239123,-382.947343,0.00024079,7]
[338411235,1726612239132,-151.0,0.00024079,7]
[338411236,1726612239141,-729.286509,0.00024079,7]
[338411237,1726612239152,-729.286509,0.00024079,7]
[338411238,1726612239163,-151.0,0.00024079,7]
[338411239,1726612239175,-151.0,0.00024079,7]
[338411240,1726612239185,-151.0,0.00024079,7]
[338411241,1726612239195,-180.315813,0.00024079,7]
[338411242,1726612239206,-180.315813,0.00024079,7]
[338411243,1726612239216,-431.07389,0.00024079,7]
[338411244,1726612239229,-431.07389,0.00024079,7]
[338411245,1726612239240,-151.0,0.00024088,7]
[338411246,1726612239251,-151.0,0.00024088,7]
[338411247,1726612239261,-151.0,0.00024088,7]
[338411248,1726612239271,-159.295994,0.00024088,7]
[338411249,1726612239280,-170.952072,0.00024088,7]
[338411250,1726612239289,-151.0,0.00024088,7]
[338411251,1726612239301,-170.952072,0.00024088,7]
[338411253,1726612239315,-151.0,0.00024088,7]
[338411254,1726612239327,-179.043057,0.00024088,7]
[338411255,1726612239338,-179.043057,0.00024088,7]
[338411256,1726612239347,-151.0,0.00024088,7]
[338411257,1726612239357,-260.865982,0.00024088,7]
[338411259,1726612239366,-151.0,0.00024089,7]
[338411260,1726612239380,-151.0,0.00024089,7]
[338411261,1726612239391,-151.0,0.00024089,7]
[338411262,1726612239403,-151.0,0.00024089,7]
[338411263,1726612239412,-151.0,0.00024089,7]
[338411264,1726612239423,-170.952072,0.00024089,7]
[338411265,1726612239434,-151.0,0.00024089,7]
[338411266,1726612239445,-170.952072,0.00024089,7]
[338411267,1726612239455,-151.0,0.00024089,7]
[338411268,1726612239466,-179.043057,0.00024089,7]
[338411269,1726612239476,-179.043057,0.00024089,7]
[338411270,1726612239486,-151.0,0.00024089,7]
[338411271,1726612239497,-164.035834,0.00024089,7]
[338411272,1726612239507,-164.035834,0.00024089,7]
[338411273,1726612239516,-382.947343,0.00024089,7]
[338411274,1726612239527,-382.947343,0.00024089,7]
[338411275,1726612239538,-151.0,0.00024089,7]
[338411276,1726612239548,-729.286509,0.00024089,7]
[338411277,1726612239559,-729.286509,0.00024089,7]
[338411279,1726612239570,-151.0,0.00024089,7]
[338411281,1726612239581,-151.0,0.00024089,7]
[338411282,1726612239592,-151.0,0.00024089,7]
[338411283,1726612239603,-180.315813,0.00024089,7]
[338411284,1726612239613,-180.315813,0.00024089,7]
[338411285,1726612239624,-431.07389,0.00024089,7]
[338411286,1726612239635,-431.07389,0.00024089,7]
[338411287,1726612239645,-151.0,0.00024099,7]
[338411288,1726612239656,-151.0,0.00024099,7]
[338411289,1726612239667,-151.0,0.00024099,7]